fUST/lending_fUST_20240723
["ID","MTS","AMOUNT","RATE_DAILY","PERIOD"]
[332931524,1721682668914,-500.0,0.0001589,2]
[332931525,1721682668924,-214.13022137,0.0001589,2]
[332931526,1721682668934,-500.0,0.0001589,2]
[332931527,1721682668943,-500.0,0.0001589,2]
[332931528,1721682668954,-500.0,0.0001589,2]
[332931529,1721682668963,-500.0,0.0001589,2]
[332931530,1721682668973,-500.0,0.0001589,2]
[332931531,1721682668983,-470.23,0.0001589,2]
[332931532,1721682668992,-500.0,0.0001589,2]
[332931533,1721682669002,-500.0,0.0001589,2]
[332931534,1721682669011,-500.0,0.0001589,2]
[332931535,1721682669021,-500.0,0.0001589,2]
[332931536,1721682669030,-500.0,0.0001589,2]
[332931537,1721682669040,-500.0,0.0001589,2]
[332931538,1721682669049,-500.0,0.0001589,2]
[332931539,1721682669058,-500.0,0.0001589,2]
[332931540,1721682669068,-500.0,0.0001589,2]
[332931541,1721682669078,-500.0,0.0001589,2]
[332931542,1721682669088,-500.0,0.0001589,2]
[332931543,1721682669097,-500.0,0.0001589,2]
[332931544,1721682669107,-500.0,0.0001589,2]
[332931545,1721682669117,-500.0,0.0001589,2]
[332931546,1721682669126,-500.0,0.0001589,2]
[332931547,1721682669136,-500.0,0.0001589,2]
[332931548,1721682669146,-500.0,0.0001589,2]
[332931549,1721682669156,-500.0,0.0001589,2]
[332931550,1721682669166,-500.0,0.0001589,2]
[332931551,1721682669179,-500.0,0.0001589,2]
[332931552,1721682669188,-500.0,0.0001589,2]
[332931553,1721682669198,-500.0,0.0001589,2]
[332931554,1721682669207,-500.0,0.0001589,2]
[332931555,1721682669217,-500.0,0.0001589,2]
[332931556,1721682669227,-500.0,0.0001589,2]
[332931557,1721682669237,-598.50153424,0.0001589,2]
[332931558,1721682669247,-500.0,0.0001589,2]
[332931559,1721682669257,-500.0,0.0001589,2]
[332931560,1721682669267,-500.0,0.0001589,2]
[332931561,1721682669279,-511.87,0.0001589,2]
[332931562,1721682669299,-500.0,0.0001589,2]
[332931563,1721682669309,-500.0,0.0001589,2]
[332931564,1721682669319,-500.0,0.0001589,2]
[332931565,1721682669328,-486.72595464,0.0001589,2]
[332931566,1721682669338,-500.0,0.0001589,2]
[332931567,1721682669348,-500.0,0.0001589,2]
[332931568,1721682669358,-500.0,0.0001589,2]
[332931569,1721682669367,-548.66,0.0001589,2]
[332931570,1721682669376,-578.61257649,0.0001589,2]
[332931571,1721682669386,-500.0,0.0001589,2]
[332931572,1721682669396,-500.0,0.0001589,2]
[332931573,1721682669406,-500.0,0.0001589,2]
[332931574,1721682669415,-524.39,0.0001589,2]
[332931575,1721682669427,-500.0,0.0001589,2]
[332931576,1721682669437,-176.839299,0.0001589,2]
[332931577,1721682669447,-500.0,0.0001589,2]
[332931578,1721682669457,-176.839299,0.0001589,2]
[332931579,1721682669466,-314.41184,0.0001589,2]
[332931580,1721682669476,-500.0,0.0001589,2]
[332931581,1721682669485,-314.41184,0.0001589,2]
[332931582,1721682669494,-500.0,0.0001589,2]
[332931583,1721682669503,-517.33,0.0001589,2]
[332931584,1721682669513,-500.0,0.0001589,2]
[332931585,1721682669523,-500.0,0.0001589,2]
[332931586,1721682669533,-500.0,0.0001589,2]
[332931587,1721682669543,-500.0,0.0001589,2]
[332931588,1721682669554,-151.0,0.0001589,2]
[332931589,1721682669565,-151.0,0.0001589,2]
[332931590,1721682669575,-579.61633,0.0001589,2]
[332931591,1721682669586,-579.61633,0.0001589,2]
[332931592,1721682669595,-500.0,0.0001589,2]
[332931593,1721682669604,-500.0,0.0001589,2]
[332931594,1721682669613,-500.0,0.0001589,2]
[332931595,1721682669623,-196.751752,0.0001589,2]
[332931596,1721682669635,-196.751752,0.0001589,2]
[332931597,1721682669644,-402.78,0.0001589,2]
[332931598,1721682669654,-500.0,0.0001589,2]
[332931599,1721682669665,-500.0,0.0001589,2]
[332931600,1721682669678,-440.75,0.0001589,2]
[332931601,1721682669688,-500.0,0.0001589,2]
[332931602,1721682669697,-500.0,0.0001589,2]
[332931603,1721682669709,-500.0,0.0001589,2]
[332931604,1721682669719,-500.0,0.0001589,2]
[332931605,1721682669729,-6997.94438168,0.00015952,2]
[332931606,1721682669739,-6997.94438168,0.00015952,2]
[332931607,1721682669749,-3000.0,0.00016,2]
[332931608,1721682669758,-1000.0,0.00016,2]
[332931609,1721682669768,-3000.0,0.0001601,2]
[332931610,1721682669778,-3000.0,0.0001602,2]
[332931611,1721682669787,-3000.0,0.0001603,2]
[332931612,1721682669796,-5923.53523309,0.00016038,2]
[332931613,1721682669805,-8099.82307032,0.00016038,2]
[332931614,1721682669815,-10604.54681746,0.00016038,2]
[332931615,1721682669825,-2653.12411033,0.00016038,2]
[332931616,1721682669834,-2653.12411033,0.00016038,2]
[332931617,1721682669843,-3000.0,0.0001604,2]
[332931618,1721682669853,-3000.0,0.0001605,2]
[332931619,1721682669863,-3000.0,0.0001606,2]
[332931620,1721682669872,-167.387979,0.00016064,2]
[332931621,1721682669882,-195.90695,0.00016064,2]
[332931622,1721682669892,-3000.0,0.0001607,2]
[332931623,1721682669902,-3000.0,0.0001608,2]
[332931624,1721682669912,-3000.0,0.0001609,2]
[332931625,1721682669922,-30000.0,0.00016094,2]
[332931626,1721682669932,-2811.09464157,0.00016095,2]
[332931627,1721682669943,-4001.92634564,0.00016095,2]
[332931628,1721682669953,-4657.8268743,0.00016095,2]
[332931629,1721682669963,-4001.92634564,0.00016095,2]
[332931630,1721682669972,-3000.0,0.000161,2]
[332931631,1721682669982,-1638.86324211,0.0001611,2]
[332931632,1721682669991,-3000.0,0.0001611,2]
[332931633,1721682670000,-3000.0,0.0001612,2]
[332931634,1721682670010,-3000.0,0.0001613,2]
[332931635,1721682670020,-3000.0,0.0001614,2]
[332931636,1721682670029,-3000.0,0.0001615,2]
[332931637,1721682670038,-2844.54225606,0.00016159,2]
[332931638,1721682670048,-1762.40924644,0.00016159,2]
[332931639,1721682670057,-3055.07852324,0.00016159,2]
[332931640,1721682670067,-3000.0,0.0001616,2]
[332931641,1721682670077,-1737.9,0.00016164,2]
[332931642,1721682670087,-724.08,0.00016164,2]
[332931643,1721682670097,-1542.13,0.00016164,2]
[332931644,1721682670107,-431.01,0.00016164,2]
[332931645,1721682670116,-521.25,0.00016164,2]
[332931646,1721682670126,-1506.88,0.00016164,2]
[332931647,1721682670136,-3642.92,0.00016164,2]
[332931648,1721682670145,-500.0,0.00016164,2]
[332931649,1721682670154,-500.0,0.00016164,2]
[332931650,1721682670164,-960.23,0.00016164,2]
[332931651,1721682670175,-500.0,0.00016164,2]
[332931652,1721682670184,-500.0,0.00016164,2]
[332931653,1721682670193,-500.0,0.00016164,2]
[332931654,1721682670203,-500.0,0.00016164,2]
[332931655,1721682670212,-201.22,0.00016164,2]
[332931656,1721682670222,-500.0,0.00016164,2]
[332931657,1721682670231,-500.0,0.00016164,2]
[332931658,1721682670241,-500.0,0.00016164,2]
[332931659,1721682670250,-500.0,0.00016164,2]
[332931660,1721682670260,-500.0,0.00016164,2]
[332931661,1721682670269,-500.0,0.00016164,2]
[332931662,1721682670279,-589.48,0.00016164,2]
[332931663,1721682670289,-500.0,0.00016164,2]
[332931664,1721682670298,-500.0,0.00016164,2]
[332931665,1721682670308,-500.0,0.00016164,2]
[332931666,1721682670318,-500.0,0.00016164,2]
[332931667,1721682670328,-424.21,0.00016164,2]
[332931668,1721682670337,-500.0,0.00016164,2]
[332931669,1721682670347,-500.0,0.00016164,2]
[332931670,1721682670357,-500.0,0.00016164,2]
[332931671,1721682670367,-500.0,0.00016164,2]
[332931672,1721682670376,-500.0,0.00016164,2]
[332931673,1721682670386,-500.0,0.00016164,2]
[332931674,1721682670395,-500.0,0.00016164,2]
[332931675,1721682670405,-500.0,0.00016164,2]
[332931676,1721682670415,-500.0,0.00016164,2]
[332931677,1721682670426,-273.27,0.00016164,2]
[332931678,1721682670435,-500.0,0.00016164,2]
[332931679,1721682670445,-500.0,0.00016164,2]
[332931680,1721682670455,-500.0,0.00016164,2]
[332931681,1721682670467,-500.0,0.00016164,2]
[332931682,1721682670476,-367.79363314,0.00016164,2]
[332931683,1721682670485,-500.0,0.00016164,2]
[332931684,1721682670495,-500.0,0.00016164,2]
[332931685,1721682670504,-196.91,0.00016164,2]
[332931686,1721682670513,-500.0,0.00016164,2]
[332931687,1721682670523,-153.57651285,0.00016164,2]
[332931688,1721682670532,-500.0,0.00016164,2]
[332931689,1721682670545,-500.0,0.00016164,2]
[332931690,1721682670555,-500.0,0.00016164,2]
[332931691,1721682670564,-500.0,0.00016164,2]
[332931692,1721682670573,-500.0,0.00016164,2]
[332931693,1721682670583,-500.0,0.00016164,2]
[332931694,1721682670592,-166.11,0.00016164,2]
[332931695,1721682670602,-500.0,0.00016164,2]
[332931696,1721682670612,-500.0,0.00016164,2]
[332931697,1721682670623,-500.0,0.00016164,2]
[332931698,1721682670634,-500.0,0.00016164,2]
[332931699,1721682670644,-233.27,0.00016164,2]
[332931700,1721682670657,-500.0,0.00016164,2]
[332931701,1721682670666,-500.0,0.00016164,2]
[332931702,1721682670678,-500.0,0.00016164,2]
[332931703,1721682670689,-500.0,0.00016164,2]
[332931704,1721682670700,-500.0,0.00016164,2]
[332931705,1721682670841,-500.0,0.00016164,2]
[332931706,1721682670852,-500.0,0.00016164,2]
[332931707,1721682670862,-500.0,0.00016164,2]
[332931708,1721682670871,-500.0,0.00016164,2]
[332931709,1721682670881,-581.59517477,0.00016164,2]
[332931710,1721682670890,-500.0,0.00016164,2]
[332931711,1721682670900,-500.0,0.00016164,2]
[332931712,1721682670909,-500.0,0.00016164,2]
[332931713,1721682670919,-500.0,0.00016164,2]
[332931714,1721682670931,-525.76,0.00016164,2]
[332931715,1721682670940,-500.0,0.00016164,2]
[332931716,1721682670950,-500.0,0.00016164,2]
[332931717,1721682670960,-500.0,0.00016164,2]
[332931718,1721682670970,-500.0,0.00016164,2]
[332931719,1721682670980,-500.0,0.00016164,2]
[332931720,1721682670990,-282.62,0.00016164,2]
[332931721,1721682671000,-500.0,0.00016164,2]
[332931722,1721682671010,-500.0,0.00016164,2]
[332931723,1721682671020,-226.96,0.00016164,2]
[332931724,1721682671029,-281.68,0.00016164,2]
[332931725,1721682671038,-500.0,0.00016164,2]
[332931726,1721682671048,-500.0,0.00016164,2]
[332931727,1721682671058,-500.0,0.00016164,2]
[332931728,1721682671067,-500.0,0.00016164,2]
[332931729,1721682671077,-500.0,0.00016164,2]
[332931730,1721682671086,-500.0,0.00016164,2]
[332931731,1721682671096,-418.39,0.00016164,2]
[332931732,1721682671105,-500.0,0.00016164,2]
[332931733,1721682671114,-500.0,0.00016164,2]
[332931734,1721682671124,-500.0,0.00016164,2]
[332931735,1721682671135,-500.0,0.00016164,2]
[332931736,1721682671145,-500.0,0.00016164,2]
[332931737,1721682671155,-500.0,0.00016164,2]
[332931738,1721682671164,-500.0,0.00016164,2]
[332931739,1721682671173,-152.56,0.00016164,2]
[332931740,1721682671184,-500.0,0.00016164,2]
[332931741,1721682671194,-500.0,0.00016164,2]
[332931742,1721682671203,-325.78,0.00016164,2]
[332931743,1721682671213,-196.35,0.00016164,2]
[332931744,1721682671223,-500.0,0.00016164,2]
[332931745,1721682671232,-151.0,0.00016164,2]
[332931746,1721682671242,-151.0,0.00016164,2]
[332931747,1721682671251,-151.0,0.00016164,2]
[332931748,1721682671260,-151.0,0.00016164,2]
[332931749,1721682671269,-3000.0,0.0001617,2]
[332931750,1721682671279,-3000.0,0.0001618,2]
[332931751,1721682671288,-3000.0,0.0001619,2]
[332931752,1721682671297,-151.0,0.0001619,2]
[332931753,1721682671307,-151.0,0.0001619,2]
[332931754,1721682671317,-3000.0,0.000162,2]
[332931755,1721682671327,-3000.0,0.0001621,2]
[332931756,1721682671337,-163.203199,0.0001621,2]
[332931757,1721682671346,-3000.0,0.0001622,2]
[332931758,1721682671356,-3000.0,0.0001623,2]
[332931759,1721682671367,-202.051485,0.0001623,2]
[332931760,1721682671376,-202.051485,0.0001623,2]
[332931761,1721682671386,-151.0,0.0001623,2]
[332931762,1721682671395,-151.0,0.0001623,2]
[332931763,1721682671406,-151.0,0.0001623,2]
[332931764,1721682671416,-151.0,0.0001623,2]
[332931765,1721682671426,-3000.0,0.0001624,2]
[332931766,1721682671437,-3000.0,0.0001625,2]
[332931767,1721682671447,-3000.0,0.0001626,2]
[332931768,1721682671456,-3000.0,0.0001627,2]
[332931769,1721682671467,-3000.0,0.0001628,2]
[332931770,1721682671477,-3000.0,0.0001629,2]
[332931771,1721682671487,-3000.0,0.000163,2]
[332931772,1721682671497,-3000.0,0.0001631,2]
[332931773,1721682671506,-3000.0,0.0001632,2]
[332931774,1721682671517,-5850.410323,0.0001633,2]
[332931775,1721682671526,-1044.21000206,0.00016347,2]
[332931776,1721682671536,-1696.91792057,0.00016347,2]
[332931777,1721682671550,-4076.21094792,0.00016347,2]
[332931778,1721682671560,-1737.9,0.00016438,2]
[332931779,1721682671569,-724.08,0.00016438,2]
[332931780,1721682671579,-1542.13,0.00016438,2]
[332931781,1721682671591,-1506.88,0.00016438,2]
[332931782,1721682671602,-3642.92,0.00016438,2]
[332931783,1721682671611,-544.17,0.00016438,2]
[332931784,1721682671623,-500.0,0.00016438,2]
[332931785,1721682671635,-960.23,0.00016438,2]
[332931786,1721682671645,-500.0,0.00016438,2]
[332931787,1721682671654,-500.0,0.00016438,2]
[332931788,1721682671663,-463.9,0.00016438,2]
[332931789,1721682671673,-500.0,0.00016438,2]
[332931790,1721682671686,-500.0,0.00016438,2]
[332931791,1721682671697,-500.0,0.00016438,2]
[332931792,1721682671708,-500.0,0.00016438,2]
[332931793,1721682671719,-500.0,0.00016438,2]
[332931794,1721682671729,-500.0,0.00016438,2]
[332931795,1721682671739,-500.0,0.00016438,2]
[332931796,1721682671748,-500.0,0.00016438,2]
[332931797,1721682671759,-500.0,0.00016438,2]
[332931798,1721682671770,-500.0,0.00016438,2]
[332931799,1721682671781,-500.0,0.00016438,2]
[332931800,1721682671793,-500.0,0.00016438,2]
[332931801,1721682671803,-500.0,0.00016438,2]
[332931802,1721682671814,-500.0,0.00016438,2]
[332931803,1721682671825,-500.0,0.00016438,2]
[332931804,1721682671835,-500.0,0.00016438,2]
[332931805,1721682671845,-500.0,0.00016438,2]
[332931806,1721682671855,-500.0,0.00016438,2]
[332931807,1721682671865,-500.0,0.00016438,2]
[332931808,1721682671876,-486.97,0.00016438,2]
[332931809,1721682671886,-500.0,0.00016438,2]
[332931810,1721682671897,-580.02,0.00016438,2]
[332931811,1721682671906,-500.0,0.00016438,2]
[332931812,1721682671916,-500.0,0.00016438,2]
[332931813,1721682671926,-500.0,0.00016438,2]
[332931814,1721682671935,-376.57,0.00016438,2]
[332931815,1721682671945,-500.0,0.00016438,2]
[332931816,1721682671955,-500.0,0.00016438,2]
[332931817,1721682671964,-500.0,0.00016438,2]
[332931818,1721682671974,-607.77,0.00016438,2]
[332931819,1721682671984,-500.0,0.00016438,2]
[332931820,1721682671993,-500.0,0.00016438,2]
[332931821,1721682672003,-500.0,0.00016438,2]
[332931822,1721682672014,-500.0,0.00016438,2]
[332931823,1721682672023,-500.0,0.00016438,2]
[332931824,1721682672032,-500.0,0.00016438,2]
[332931825,1721682672042,-580.42005554,0.00016438,2]
[332931826,1721682672051,-500.0,0.00016438,2]
[332931827,1721682672062,-500.0,0.00016438,2]
[332931828,1721682672073,-500.0,0.00016438,2]
[332931829,1721682672082,-500.0,0.00016438,2]
[332931830,1721682672093,-500.0,0.00016438,2]
[332931831,1721682672103,-500.0,0.00016438,2]
[332931832,1721682672112,-500.0,0.00016438,2]
[332931833,1721682672124,-500.0,0.00016438,2]
[332931834,1721682672134,-500.0,0.00016438,2]
[332931835,1721682672144,-160.05,0.00016438,2]
[332931836,1721682672158,-500.0,0.00016438,2]
[332931837,1721682672168,-500.0,0.00016438,2]
[332931838,1721682672180,-329.79016222,0.00016438,2]
[332931839,1721682672190,-500.0,0.00016438,2]
[332931840,1721682672200,-151.0,0.00016438,2]
[332931841,1721682672211,-275.77,0.00016438,2]
[332931842,1721682672221,-500.0,0.00016438,2]
[332931843,1721682672231,-151.0,0.00016438,2]
[332931844,1721682672240,-151.0,0.00016438,2]
[332931845,1721682672251,-500.0,0.00016438,2]
[332931846,1721682672261,-500.0,0.00016438,2]
[332931847,1721682672273,-500.0,0.00016438,2]
[332931848,1721682672283,-500.0,0.00016438,2]
[332931849,1721682672292,-151.0,0.00016438,2]
[332931850,1721682672302,-151.0,0.00016438,2]
[332931851,1721682672313,-151.0,0.00016438,2]
[332931852,1721682672323,-500.0,0.00016438,2]
[332931853,1721682672333,-151.0,0.00016438,2]
[332931854,1721682672342,-151.0,0.00016438,2]
[332931855,1721682672352,-500.0,0.00016438,2]
[332931856,1721682672361,-500.0,0.00016438,2]
[332931857,1721682672372,-500.0,0.00016438,2]
[332931858,1721682672383,-500.0,0.00016438,2]
[332931859,1721682672394,-500.0,0.00016438,2]
[332931860,1721682672406,-500.0,0.00016438,2]
[332931861,1721682672417,-500.0,0.00016438,2]
[332931862,1721682672428,-497.78,0.00016438,2]
[332931863,1721682672439,-278.0,0.00016438,2]
[332931864,1721682672449,-483.38,0.00016438,2]
[332931865,1721682672459,-500.0,0.00016438,2]
[332931866,1721682672471,-183.83,0.00016438,2]
[332931867,1721682672481,-166.666666,0.00016438,2]
[332931868,1721682672492,-293.8749366,0.00016448,2]
[332931869,1721682672502,-430.904245,0.00016448,2]
[332931870,1721682672511,-293.8749366,0.00016448,2]
[332931871,1721682672521,-167.387979,0.00016456,2]
[332931872,1721682672530,-195.90695,0.00016456,2]
[332931873,1721682672540,-167.387979,0.00016456,2]
[332931874,1721682672550,-195.906949,0.00016456,2]
[332931875,1721682672563,-1000.0,0.000165,2]
[332931876,1721682672573,-1737.9,0.00016712,2]
[332931877,1721682672583,-724.08,0.00016712,2]
[332931878,1721682672593,-1542.13,0.00016712,2]
[332931879,1721682672602,-1506.88,0.00016712,2]
[332931880,1721682672611,-3642.92,0.00016712,2]
[332931881,1721682672620,-500.0,0.00016712,2]
[332931882,1721682672632,-960.23,0.00016712,2]
[332931883,1721682672641,-500.0,0.00016712,2]
[332931884,1721682672652,-500.0,0.00016712,2]
[332931885,1721682672661,-500.0,0.00016712,2]
[332931886,1721682672670,-500.0,0.00016712,2]
[332931887,1721682672682,-500.0,0.00016712,2]
[332931888,1721682672691,-500.0,0.00016712,2]
[332931889,1721682672701,-500.0,0.00016712,2]
[332931890,1721682672710,-500.0,0.00016712,2]
[332931891,1721682672719,-200.56,0.00016712,2]
[332931892,1721682672729,-500.0,0.00016712,2]
[332931893,1721682672739,-500.0,0.00016712,2]
[332931894,1721682672749,-384.66,0.00016712,2]
[332931895,1721682672758,-500.0,0.00016712,2]
[332931896,1721682672768,-500.0,0.00016712,2]
[332931897,1721682672777,-500.0,0.00016712,2]
[332931898,1721682672787,-500.0,0.00016712,2]
[332931899,1721682672796,-388.56979651,0.00016712,2]
[332931900,1721682672806,-500.0,0.00016712,2]
[332931901,1721682672816,-500.0,0.00016712,2]
[332931902,1721682672825,-500.0,0.00016712,2]
[332931903,1721682672835,-214.38,0.00016712,2]
[332931904,1721682672845,-500.0,0.00016712,2]
[332931905,1721682672855,-268.59,0.00016712,2]
[332931906,1721682672866,-499.77,0.00016712,2]
[332931907,1721682672875,-355.04,0.00016712,2]
[332931908,1721682672885,-319.43952288,0.00016712,2]
[332931909,1721682672895,-500.0,0.00016712,2]
[332931910,1721682672905,-500.0,0.00016712,2]
[332931911,1721682672914,-500.0,0.00016712,2]
[332931912,1721682672923,-500.0,0.00016712,2]
[332931913,1721682672936,-500.0,0.00016712,2]
[332931914,1721682672945,-500.0,0.00016712,2]
[332931915,1721682672955,-500.0,0.00016712,2]
[332931916,1721682672964,-275.13,0.00016712,2]
[332931917,1721682672973,-631.65,0.00016712,2]
[332931918,1721682672983,-500.0,0.00016712,2]
[332931919,1721682672992,-500.0,0.00016712,2]
[332931920,1721682673001,-500.0,0.00016712,2]
[332931921,1721682673010,-500.0,0.00016712,2]
[332931922,1721682673020,-500.0,0.00016712,2]
[332931923,1721682673029,-500.0,0.00016712,2]
[332931924,1721682673039,-500.0,0.00016712,2]
[332931925,1721682673048,-500.0,0.00016712,2]
[332931926,1721682673058,-206.61563991,0.00016712,2]
[332931927,1721682673068,-193.12,0.00016712,2]
[332931928,1721682673077,-500.0,0.00016712,2]
[332931929,1721682673087,-510.99,0.00016712,2]
[332931930,1721682673097,-500.0,0.00016712,2]
[332931931,1721682673107,-518.63,0.00016712,2]
[332931932,1721682673118,-500.0,0.00016712,2]
[332931933,1721682673129,-500.0,0.00016712,2]
[332931934,1721682673138,-500.0,0.00016712,2]
[332931935,1721682673148,-500.0,0.00016712,2]
[332931936,1721682673157,-500.0,0.00016712,2]
[332931937,1721682673167,-160.73,0.00016712,2]
[332931938,1721682673177,-278.0,0.00016712,2]
[332931939,1721682673189,-500.0,0.00016712,2]
[332931940,1721682673198,-166.666666,0.00016823,2]
[332931941,1721682673209,-600.0,0.00016846,2]
[332931942,1721682673219,-1737.9,0.00016986,2]
[332931943,1721682673229,-724.08,0.00016986,2]
[332931944,1721682673239,-1542.13,0.00016986,2]
[332931945,1721682673250,-1506.88,0.00016986,2]
[332931946,1721682673260,-3642.92,0.00016986,2]
[332931947,1721682673270,-500.0,0.00016986,2]
[332931948,1721682673281,-960.23,0.00016986,2]
[332931949,1721682673290,-205.6,0.00016986,2]
[332931950,1721682673300,-500.0,0.00016986,2]
[332931951,1721682673309,-567.04,0.00016986,2]
[332931952,1721682673319,-500.0,0.00016986,2]
[332931953,1721682673328,-500.0,0.00016986,2]
[332931954,1721682673338,-500.0,0.00016986,2]
[332931955,1721682673347,-500.0,0.00016986,2]
[332931956,1721682673356,-500.0,0.00016986,2]
[332931957,1721682673366,-500.0,0.00016986,2]
[332931958,1721682673375,-500.0,0.00016986,2]
[332931959,1721682673384,-500.0,0.00016986,2]
[332931960,1721682673393,-500.0,0.00016986,2]
[332931961,1721682673402,-500.0,0.00016986,2]
[332931962,1721682673411,-632.04,0.00016986,2]
[332931963,1721682673421,-500.0,0.00016986,2]
[332931964,1721682673431,-500.0,0.00016986,2]
[332931965,1721682673441,-500.0,0.00016986,2]
[332931966,1721682673450,-500.0,0.00016986,2]
[332931967,1721682673459,-218.14,0.00016986,2]
[332931968,1721682673469,-500.0,0.00016986,2]
[332931969,1721682673478,-500.0,0.00016986,2]
[332931970,1721682673488,-500.0,0.00016986,2]
[332931971,1721682673498,-500.0,0.00016986,2]
[332931972,1721682673508,-500.0,0.00016986,2]
[332931973,1721682673520,-500.0,0.00016986,2]
[332931974,1721682673530,-589.64,0.00016986,2]
[332931975,1721682673541,-422.08,0.00016986,2]
[332931976,1721682673556,-500.0,0.00016986,2]
[332931977,1721682673565,-500.0,0.00016986,2]
[332931978,1721682673575,-500.0,0.00016986,2]
[332931979,1721682673583,-562.75,0.00016986,2]
[332931980,1721682673605,-500.0,0.00016986,2]
[332931981,1721682673616,-155.067608,0.00016986,2]
[332931982,1721682673628,-500.0,0.00016986,2]
[332931983,1721682673638,-451.53,0.00016986,2]
[332931984,1721682673648,-500.0,0.00016986,2]
[332931985,1721682673657,-500.0,0.00016986,2]
[332931986,1721682673667,-500.0,0.00016986,2]
[332931987,1721682673676,-516.51521586,0.00016986,2]
[332931988,1721682673689,-278.0,0.00016986,2]
[332931989,1721682673698,-500.0,0.00016986,2]
[332931990,1721682673708,-187.066228,0.00016986,2]
[332931991,1721682673718,-187.066228,0.00016986,2]
[332931992,1721682673906,-1000.0,0.00017,2]
[332931993,1721682673916,-151.0,0.00017019,2]
[332931994,1721682673926,-151.0,0.00017019,2]
[332931995,1721682673936,-151.0,0.00017019,2]
[332931996,1721682673945,-151.0,0.00017019,2]
[332931997,1721682673954,-175.174591,0.00017019,2]
[332931998,1721682673964,-175.174591,0.00017019,2]
[332931999,1721682673973,-392.41518097,0.00017119,2]
[332932000,1721682673982,-166.666666,0.00017208,2]
[332932001,1721682673992,-1737.9,0.0001726,2]
[332932002,1721682674001,-724.08,0.0001726,2]
[332932003,1721682674010,-1542.13,0.0001726,2]
[332932004,1721682674020,-1506.88,0.0001726,2]
[332932005,1721682674030,-3642.92,0.0001726,2]
[332932006,1721682674040,-500.0,0.0001726,2]
[332932007,1721682674052,-960.23,0.0001726,2]
[332932008,1721682674061,-500.0,0.0001726,2]
[332932009,1721682674070,-500.0,0.0001726,2]
[332932010,1721682674079,-500.0,0.0001726,2]
[332932011,1721682674089,-526.39599564,0.0001726,2]
[332932012,1721682674097,-500.0,0.0001726,2]
[332932013,1721682674106,-377.25,0.0001726,2]
[332932014,1721682674118,-311.87,0.0001726,2]
[332932015,1721682674128,-500.0,0.0001726,2]
[332932016,1721682674140,-500.0,0.0001726,2]
[332932017,1721682674149,-500.0,0.0001726,2]
[332932018,1721682674159,-344.98,0.0001726,2]
[332932019,1721682674169,-500.0,0.0001726,2]
[332932020,1721682674180,-500.0,0.0001726,2]
[332932021,1721682674190,-500.0,0.0001726,2]
[332932022,1721682674200,-500.0,0.0001726,2]
[332932023,1721682674211,-500.0,0.0001726,2]